[Event "*** Titled Tuesday Blitz"]
[Site "Chess.com"]
[Date "2020.03.03"]
[Round "4"]
[White "NeverEverForever1990"]
[Black "Karacsonyi_Gellert"]
[Result "0-1"]
[WhiteElo "2356"]
[BlackElo "2594"]
[TimeControl "180+1"]
[EndTime "13:40:34 PST"]
[Termination "Karacsonyi_Gellert won by resignation"]

1. e4 {[%clk 0:03:00.9]} 1... c5 {[%clk 0:02:59.4]} 2. Nf3 {[%clk 0:02:57.9]}
2... Nc6 {[%clk 0:02:58.8]} 3. Bb5 {[%clk 0:02:57.1]} 3... g6 {[%clk 0:02:57.8]}
4. O-O {[%clk 0:02:56.1]} 4... Bg7 {[%clk 0:02:57.8]} 5. Re1 {[%clk 0:02:54.5]}
5... e5 {[%clk 0:02:57.4]} 6. b4 {[%clk 0:02:54.1]} 6... cxb4 {[%clk 0:02:57.2]}
7. a3 {[%clk 0:02:51.9]} 7... b3 {[%clk 0:02:57.7]} 8. cxb3 {[%clk 0:02:51.4]}
8... Nge7 {[%clk 0:02:56.9]} 9. Nc3 {[%clk 0:02:49.9]} 9... d6 {[%clk
0:02:56.8]} 10. a4 {[%clk 0:02:39.8]} 10... O-O {[%clk 0:02:56.9]} 11. d3 {[%clk
0:02:37.8]} 11... Bg4 {[%clk 0:02:56.8]} 12. h3 {[%clk 0:02:34.6]} 12... Bxf3
{[%clk 0:02:56.8]} 13. Qxf3 {[%clk 0:02:35.5]} 13... Nd4 {[%clk 0:02:57.4]} 14.
Qd1 {[%clk 0:02:34.5]} 14... a6 {[%clk 0:02:57.3]} 15. Bc4 {[%clk 0:02:31.7]}
15... Qd7 {[%clk 0:02:47.6]} 16. Be3 {[%clk 0:02:16.3]} 16... b5 {[%clk
0:02:40.4]} 17. axb5 {[%clk 0:01:44.6]} 17... axb5 {[%clk 0:02:41.3]} 18. Bd5
{[%clk 0:01:44.8]} 18... Rxa1 {[%clk 0:02:36.6]} 19. Qxa1 {[%clk 0:01:41.4]}
19... Nc2 {[%clk 0:02:36.7]} 20. Qc1 {[%clk 0:01:39.4]} 20... Nxe1 {[%clk
0:02:36.6]} 21. Qxe1 {[%clk 0:01:40.3]} 21... b4 {[%clk 0:02:32.5]} 22. Na4
{[%clk 0:01:37.7]} 22... Nxd5 {[%clk 0:02:31.9]} 23. exd5 {[%clk 0:01:37.8]}
23... Qb5 {[%clk 0:02:31.6]} 24. Qd2 {[%clk 0:01:24.8]} 24... f5 {[%clk
0:02:29.4]} 25. Bg5 {[%clk 0:01:18.4]} 25... Qxd5 {[%clk 0:02:22.2]} 26. Qxb4
{[%clk 0:01:16.6]} 26... Qxd3 {[%clk 0:02:15.8]} 27. Be7 {[%clk 0:01:16.1]}
27... Re8 {[%clk 0:02:14.7]} 28. Bxd6 {[%clk 0:01:16]} 28... e4 {[%clk
0:02:10.8]} 29. Bf4 {[%clk 0:01:10.6]} 29... Qd1+ {[%clk 0:02:01.5]} 30. Kh2
{[%clk 0:01:10.2]} 30... Qd5 {[%clk 0:02:01.9]} 31. Nb6 {[%clk 0:01:07]} 31...
Qe6 {[%clk 0:02:01.3]} 32. Qc4 {[%clk 0:00:55.3]} 32... Qxc4 {[%clk 0:02:00.4]}
33. Nxc4 {[%clk 0:00:55.1]} 33... Rc8 {[%clk 0:01:58.3]} 34. Nd6 {[%clk
0:00:50.6]} 34... Rb8 {[%clk 0:01:54.6]} 35. Nxf5 {[%clk 0:00:45.1]} 35... Rxb3
{[%clk 0:01:53.9]} 36. Nxg7 {[%clk 0:00:39.4]} 36... Kxg7 {[%clk 0:01:47.5]} 37.
Be3 {[%clk 0:00:38.5]} 37... Kf6 {[%clk 0:01:46.4]} 38. g4 {[%clk 0:00:34.8]}
38... Ke5 {[%clk 0:01:44]} 39. Kg3 {[%clk 0:00:34.4]} 39... Rb1 {[%clk
0:01:43.7]} 40. Kg2 {[%clk 0:00:31.5]} 40... Kd5 {[%clk 0:01:42.1]} 41. h4
{[%clk 0:00:30.9]} 41... Kc4 {[%clk 0:01:41.5]} 42. h5 {[%clk 0:00:17.4]} 42...
gxh5 {[%clk 0:01:39.8]} 43. gxh5 {[%clk 0:00:18]} 43... Kd3 {[%clk 0:01:40.7]}
44. h6 {[%clk 0:00:17.2]} 44... Re1 {[%clk 0:01:38.6]} 45. Bf4 {[%clk
0:00:16.5]} 45... Kc4 {[%clk 0:01:32.4]} 46. Kg3 {[%clk 0:00:15.5]} 46... Rg1+
{[%clk 0:01:30.9]} 47. Kh2 {[%clk 0:00:14.1]} 47... Rg6 {[%clk 0:01:31.3]} 48.
Be3 {[%clk 0:00:13.6]} 48... Kd3 {[%clk 0:01:31.4]} 49. Kh3 {[%clk 0:00:13.9]}
49... Ke2 {[%clk 0:01:31.3]} 50. Kh4 {[%clk 0:00:12.6]} 50... Kf3 {[%clk
0:01:31.6]} 51. Kh5 {[%clk 0:00:13.2]} 51... Rg2 {[%clk 0:01:30.4]} 52. Bd4
{[%clk 0:00:10.8]} 52... Rxf2 {[%clk 0:01:18.4]} 53. Bxf2 {[%clk 0:00:09.6]}
53... Kxf2 {[%clk 0:01:19.3]} 54. Kg5 {[%clk 0:00:10.3]} 54... e3 {[%clk
0:01:20.2]} 55. Kf6 {[%clk 0:00:11.2]} 55... e2 {[%clk 0:01:21.1]} 56. Kg7
{[%clk 0:00:12.1]} 56... e1=Q {[%clk 0:01:21.4]} 57. Kxh7 {[%clk 0:00:13]} 57...
Qe7+ {[%clk 0:01:20.6]} 58. Kg8 {[%clk 0:00:12.6]} 58... Qg5+ {[%clk 0:01:19.9]}
59. Kh7 {[%clk 0:00:10.4]} 59... Kf3 {[%clk 0:01:19.7]} 60. Kh8 {[%clk
0:00:10.5]} 60... Qxh6+ {[%clk 0:01:19.3]} 61. Kg8 {[%clk 0:00:11.4]} 61... Qe6+
{[%clk 0:01:19.5]} 62. Kg7 {[%clk 0:00:11.3]} 62... Kf4 {[%clk 0:01:20.4]} 0-1

[Event "*** Titled Tuesday Blitz"]
[Site "Chess.com"]
[Date "2020.03.03"]
[Round "4"]
[White "Playgood28"]
[Black "brutoman"]
[Result "1-0"]
[WhiteElo "2252"]
[BlackElo "1942"]
[TimeControl "180+1"]
[EndTime "13:40:34 PST"]
[Termination "Playgood28 won on time"]

1. d4 {[%clk 0:03:00.9]} 1... Nf6 {[%clk 0:02:59.7]} 2. c4 {[%clk 0:03:00.5]}
2... e6 {[%clk 0:02:59.9]} 3. Nc3 {[%clk 0:03:00.7]} 3... Bb4 {[%clk 0:02:59.7]}
4. Qc2 {[%clk 0:03:00.7]} 4... c5 {[%clk 0:02:52.6]} 5. dxc5 {[%clk 0:02:59.2]}
5... Nc6 {[%clk 0:02:39.3]} 6. Nf3 {[%clk 0:02:55.9]} 6... Bxc5 {[%clk
0:02:35.7]} 7. a3 {[%clk 0:02:55]} 7... a5 {[%clk 0:02:33.2]} 8. e3 {[%clk
0:02:52.7]} 8... O-O {[%clk 0:02:31.7]} 9. Be2 {[%clk 0:02:50.9]} 9... d5 {[%clk
0:01:57.2]} 10. cxd5 {[%clk 0:02:49.2]} 10... Nxd5 {[%clk 0:01:57]} 11. Nxd5
{[%clk 0:02:46.9]} 11... Qxd5 {[%clk 0:01:57.4]} 12. Bc4 {[%clk 0:02:43]} 12...
Qd6 {[%clk 0:01:53.7]} 13. O-O {[%clk 0:02:40.7]} 13... b6 {[%clk 0:01:51.6]}
14. Rd1 {[%clk 0:02:38.5]} 14... Qe7 {[%clk 0:01:50.3]} 15. b3 {[%clk
0:02:26.4]} 15... Bb7 {[%clk 0:01:50]} 16. Bb2 {[%clk 0:02:24.7]} 16... Rfd8
{[%clk 0:01:45.4]} 17. Bd3 {[%clk 0:02:21.9]} 17... f5 {[%clk 0:01:34.3]} 18.
Qc3 {[%clk 0:02:13]} 18... Rac8 {[%clk 0:01:30.3]} 19. Bb5 {[%clk 0:01:56.1]}
19... Na7 {[%clk 0:01:21.7]} 20. Rxd8+ {[%clk 0:01:51.8]} 20... Rxd8 {[%clk
0:01:19.7]} 21. Be2 {[%clk 0:01:47.3]} 21... Ba8 {[%clk 0:01:03.3]} 22. Ne5
{[%clk 0:01:40.2]} 22... Bd6 {[%clk 0:00:49.7]} 23. Rd1 {[%clk 0:01:21]} 23...
Bd5 {[%clk 0:00:35.7]} 24. Nc4 {[%clk 0:01:15.2]} 24... Bc7 {[%clk 0:00:30.4]}
25. Bf3 {[%clk 0:01:00.1]} 25... Nb5 {[%clk 0:00:27.2]} 26. Qc1 {[%clk
0:00:53.1]} 26... Bxf3 {[%clk 0:00:24.6]} 27. Rxd8+ {[%clk 0:00:51]} 27... Qxd8
{[%clk 0:00:23.9]} 28. gxf3 {[%clk 0:00:50.7]} 28... Nd6 {[%clk 0:00:12.3]} 29.
a4 {[%clk 0:00:44.3]} 29... Nxc4 {[%clk 0:00:11.6]} 30. Qxc4 {[%clk 0:00:43.8]}
30... Qd6 {[%clk 0:00:11.5]} 31. h3 {[%clk 0:00:23.1]} 1-0

[Event "*** Titled Tuesday Blitz"]
[Site "Chess.com"]
[Date "2020.03.03"]
[Round "4"]
[White "aquaticpineapples"]
[Black "davserr65"]
[Result "0-1"]
[WhiteElo "2248"]
[BlackElo "2081"]
[TimeControl "180+1"]
[EndTime "13:40:36 PST"]
[Termination "davserr65 won by resignation"]

1. d4 {[%clk 0:02:44.1]} 1... Nf6 {[%clk 0:02:59.6]} 2. Nf3 {[%clk 0:02:16.3]}
2... g6 {[%clk 0:02:59.3]} 3. Nbd2 {[%clk 0:02:16.7]} 3... d5 {[%clk 0:02:58.8]}
4. e3 {[%clk 0:02:16.4]} 4... Bg7 {[%clk 0:02:58.4]} 5. b4 {[%clk 0:02:16.8]}
5... a5 {[%clk 0:02:53.9]} 6. b5 {[%clk 0:02:16.5]} 6... b6 {[%clk 0:02:53.1]}
7. c4 {[%clk 0:02:16.4]} 7... Bb7 {[%clk 0:02:45]} 8. Bb2 {[%clk 0:02:14.6]}
8... O-O {[%clk 0:02:44.3]} 9. Be2 {[%clk 0:02:14.3]} 9... c6 {[%clk 0:02:39.1]}
10. bxc6 {[%clk 0:02:02.3]} 10... Nxc6 {[%clk 0:02:38.4]} 11. O-O {[%clk
0:02:01.5]} 11... Rc8 {[%clk 0:02:35.1]} 12. Qb3 {[%clk 0:01:57]} 12... Ba6
{[%clk 0:01:10.3]} 13. Rfe1 {[%clk 0:01:50.6]} 13... dxc4 {[%clk 0:00:59.8]} 14.
Bxc4 {[%clk 0:01:38]} 14... Bb7 {[%clk 0:00:52.4]} 15. Ng5 {[%clk 0:01:25.8]}
15... e6 {[%clk 0:00:49.8]} 16. Bxe6 {[%clk 0:01:16.4]} 16... fxe6 {[%clk
0:00:44.6]} 17. Nxe6 {[%clk 0:01:05]} 17... Qe7 {[%clk 0:00:44.8]} 18. Ba3
{[%clk 0:01:02]} 18... Nb4 {[%clk 0:00:44.8]} 19. Bxb4 {[%clk 0:00:55.6]} 19...
axb4 {[%clk 0:00:43.4]} 20. Nxf8+ {[%clk 0:00:49]} 20... Kxf8 {[%clk 0:00:42.6]}
21. Rec1 {[%clk 0:00:44.6]} 21... Re8 {[%clk 0:00:34]} 22. Nc4 {[%clk
0:00:40.9]} 22... Nd5 {[%clk 0:00:29.1]} 23. a3 {[%clk 0:00:32]} 23... bxa3
{[%clk 0:00:27.6]} 24. Nxb6 {[%clk 0:00:27.7]} 24... Nxb6 {[%clk 0:00:26.3]} 25.
Qxb6 {[%clk 0:00:27.8]} 25... Qe4 {[%clk 0:00:25.8]} 26. Qc5+ {[%clk 0:00:25.5]}
26... Kg8 {[%clk 0:00:24.9]} 27. Qg5 {[%clk 0:00:24.6]} 27... h6 {[%clk
0:00:22.5]} 28. Qg3 {[%clk 0:00:21.2]} 28... Bf8 {[%clk 0:00:18.6]} 29. Rc7
{[%clk 0:00:15.7]} 29... Bd6 {[%clk 0:00:15]} 30. f3 {[%clk 0:00:04.7]} 30...
Bxg3 {[%clk 0:00:14.4]} 31. fxe4 {[%clk 0:00:04.3]} 31... Bxc7 {[%clk 0:00:15]}
0-1

[Event "*** Titled Tuesday Blitz"]
[Site "Chess.com"]
[Date "2020.03.03"]
[Round "4"]
[White "boasovietica"]
[Black "Resignify"]
[Result "1-0"]
[WhiteElo "2480"]
[BlackElo "2208"]
[TimeControl "180+1"]
[EndTime "13:40:37 PST"]
[Termination "boasovietica won on time"]

1. e4 {[%clk 0:03:00.9]} 1... d6 {[%clk 0:02:56.2]} 2. d4 {[%clk 0:03:00.3]}
2... Nf6 {[%clk 0:02:55.9]} 3. f3 {[%clk 0:03:00.5]} 3... Nbd7 {[%clk
0:02:51.8]} 4. Ne2 {[%clk 0:03:00.4]} 4... e5 {[%clk 0:02:51.6]} 5. Be3 {[%clk
0:02:59.4]} 5... Be7 {[%clk 0:02:49.9]} 6. c4 {[%clk 0:02:58.9]} 6... h6 {[%clk
0:02:48.3]} 7. Nbc3 {[%clk 0:02:59.1]} 7... c6 {[%clk 0:02:44.8]} 8. Qd2 {[%clk
0:02:58.8]} 8... Nh7 {[%clk 0:02:44.3]} 9. g3 {[%clk 0:02:42.6]} 9... Nb6 {[%clk
0:02:33]} 10. b3 {[%clk 0:02:40.4]} 10... Ng5 {[%clk 0:02:23.2]} 11. Bg2 {[%clk
0:02:36.2]} 11... Bh3 {[%clk 0:02:16.3]} 12. O-O {[%clk 0:02:34.4]} 12... Bxg2
{[%clk 0:01:51.6]} 13. Kxg2 {[%clk 0:02:34.2]} 13... h5 {[%clk 0:01:42.7]} 14.
f4 {[%clk 0:02:23]} 14... exf4 {[%clk 0:01:18.2]} 15. gxf4 {[%clk 0:02:19]}
15... Ne6 {[%clk 0:01:03.6]} 16. d5 {[%clk 0:02:02.8]} 16... Nc7 {[%clk
0:00:46.2]} 17. Rad1 {[%clk 0:01:57.5]} 17... c5 {[%clk 0:00:43.7]} 18. e5
{[%clk 0:01:53.4]} 18... Qd7 {[%clk 0:00:36.3]} 19. Kh1 {[%clk 0:01:46]} 19...
h4 {[%clk 0:00:30.9]} 20. a4 {[%clk 0:01:44.3]} 20... Qf5 {[%clk 0:00:26.8]} 21.
Qd3 {[%clk 0:01:28]} 21... Qxd3 {[%clk 0:00:25.3]} 22. Rxd3 {[%clk 0:01:28.9]}
22... Nd7 {[%clk 0:00:20.6]} 23. Ne4 {[%clk 0:01:22.9]} 23... Na6 {[%clk
0:00:15.1]} 24. exd6 {[%clk 0:01:14]} 24... Bf6 {[%clk 0:00:14.9]} 25. Nxf6+
{[%clk 0:01:12.7]} 25... Nxf6 {[%clk 0:00:14.9]} 26. Nc3 {[%clk 0:01:08.4]}
26... O-O-O {[%clk 0:00:13.5]} 27. Nb5 {[%clk 0:01:07.7]} 27... Kb8 {[%clk
0:00:12.6]} 28. f5 {[%clk 0:01:03.6]} 28... Rhe8 {[%clk 0:00:11.2]} 29. Bg5
{[%clk 0:01:02.9]} 29... Rd7 {[%clk 0:00:09.8]} 30. Bxh4 {[%clk 0:01:01.1]}
30... Nb4 {[%clk 0:00:09.2]} 31. Rg3 {[%clk 0:00:58.9]} 31... a6 {[%clk
0:00:08.4]} 32. Nc7 {[%clk 0:00:55]} 32... Re4 {[%clk 0:00:06.3]} 33. Bxf6
{[%clk 0:00:53.9]} 33... gxf6 {[%clk 0:00:06.7]} 34. Rg8+ {[%clk 0:00:49]} 34...
Ka7 {[%clk 0:00:07]} 35. a5 {[%clk 0:00:48.9]} 35... b6 {[%clk 0:00:05.4]} 36.
axb6+ {[%clk 0:00:46.7]} 36... Kxb6 {[%clk 0:00:04]} 37. Ne8 {[%clk 0:00:35.9]}
37... Nd3 {[%clk 0:00:03.2]} 38. Nxf6 {[%clk 0:00:35.4]} 38... Rxd6 {[%clk
0:00:02]} 39. Nxe4 {[%clk 0:00:34.9]} 39... Rh6 {[%clk 0:00:01.1]} 40. Rg2
{[%clk 0:00:29.9]} 1-0

[Event "*** Titled Tuesday Blitz"]
[Site "Chess.com"]
[Date "2020.03.03"]
[Round "4"]
[White "Barcelona_Guy"]
[Black "ChessLover0108"]
[Result "0-1"]
[WhiteElo "2581"]
[BlackElo "2765"]
[TimeControl "180+1"]
[EndTime "13:40:38 PST"]
[Termination "ChessLover0108 won by resignation"]

1. e4 {[%clk 0:03:00.9]} 1... c5 {[%clk 0:03:00]} 2. Nf3 {[%clk 0:02:58.7]} 2...
d6 {[%clk 0:03:00.1]} 3. d4 {[%clk 0:02:59.2]} 3... cxd4 {[%clk 0:03:01]} 4.
Nxd4 {[%clk 0:03:00.1]} 4... Nf6 {[%clk 0:03:01.9]} 5. Nc3 {[%clk 0:03:00.7]}
5... a6 {[%clk 0:03:02.5]} 6. g3 {[%clk 0:03:01.2]} 6... e5 {[%clk 0:03:01.7]}
7. Nde2 {[%clk 0:03:01.7]} 7... Be7 {[%clk 0:03:01.4]} 8. Bg2 {[%clk 0:03:02]}
8... b5 {[%clk 0:03:01.4]} 9. Nd5 {[%clk 0:03:02.1]} 9... Nxd5 {[%clk
0:02:57.3]} 10. Qxd5 {[%clk 0:03:01.8]} 10... Ra7 {[%clk 0:02:57.8]} 11. Qd3
{[%clk 0:03:01.9]} 11... Be6 {[%clk 0:02:57.1]} 12. Be3 {[%clk 0:02:56.8]} 12...
Rb7 {[%clk 0:02:49.2]} 13. Nc3 {[%clk 0:02:56.6]} 13... Nd7 {[%clk 0:02:48.9]}
14. Nd5 {[%clk 0:02:52.7]} 14... Bxd5 {[%clk 0:02:43.9]} 15. Qxd5 {[%clk
0:02:51.9]} 15... Qc8 {[%clk 0:02:43.7]} 16. O-O {[%clk 0:02:42.3]} 16... Nf6
{[%clk 0:02:43]} 17. Qd3 {[%clk 0:02:39.2]} 17... O-O {[%clk 0:02:43.3]} 18.
Rfc1 {[%clk 0:02:37.5]} 18... Rc7 {[%clk 0:02:42]} 19. c3 {[%clk 0:02:33]} 19...
h6 {[%clk 0:02:41.1]} 20. a4 {[%clk 0:02:32.7]} 20... Rc4 {[%clk 0:02:39.3]} 21.
axb5 {[%clk 0:02:31.7]} 21... axb5 {[%clk 0:02:40.2]} 22. Ra5 {[%clk 0:02:13.7]}
22... b4 {[%clk 0:02:29.7]} 23. Bf1 {[%clk 0:02:04.2]} 23... Rc7 {[%clk
0:02:28.3]} 24. Raa1 {[%clk 0:01:36.2]} 24... bxc3 {[%clk 0:02:19.8]} 25. bxc3
{[%clk 0:01:32.3]} 25... Qb7 {[%clk 0:02:20.1]} 26. Ra7 {[%clk 0:01:28]} 26...
Qc6 {[%clk 0:02:14.2]} 27. Rxc7 {[%clk 0:01:25.9]} 27... Qxc7 {[%clk 0:02:15.1]}
28. c4 {[%clk 0:01:23.2]} 28... Rb8 {[%clk 0:01:47.7]} 29. Rb1 {[%clk 0:01:18]}
29... Rxb1 {[%clk 0:01:41.8]} 30. Qxb1 {[%clk 0:01:17.8]} 30... Nd7 {[%clk
0:01:40.8]} 31. Qb5 {[%clk 0:01:16.4]} 31... Bg5 {[%clk 0:01:36.4]} 32. f4
{[%clk 0:00:42.9]} 32... exf4 {[%clk 0:01:34.9]} 33. gxf4 {[%clk 0:00:42.8]}
33... Bf6 {[%clk 0:01:35.2]} 34. Bh3 {[%clk 0:00:39.8]} 34... Nf8 {[%clk
0:01:33.1]} 35. Qd5 {[%clk 0:00:31.1]} 35... Qb8 {[%clk 0:01:29.9]} 36. c5
{[%clk 0:00:26.6]} 36... dxc5 {[%clk 0:01:27.3]} 37. e5 {[%clk 0:00:20.2]} 37...
Be7 {[%clk 0:01:24.7]} 38. f5 {[%clk 0:00:20]} 38... Qb1+ {[%clk 0:01:14.5]} 39.
Kg2 {[%clk 0:00:20.4]} 39... Qc2+ {[%clk 0:01:15]} 40. Kg1 {[%clk 0:00:20.4]}
40... c4 {[%clk 0:01:12.2]} 41. e6 {[%clk 0:00:16.2]} 41... fxe6 {[%clk
0:01:12]} 42. fxe6 {[%clk 0:00:14.3]} 42... c3 {[%clk 0:01:12.2]} 43. Qf3 {[%clk
0:00:11.8]} 43... Qg6+ {[%clk 0:01:03.2]} 44. Kh1 {[%clk 0:00:12.2]} 44... c2
{[%clk 0:01:01.3]} 45. Bf5 {[%clk 0:00:11]} 45... Qf6 {[%clk 0:00:56.2]} 46. Kg2
{[%clk 0:00:11.3]} 46... Qb2 {[%clk 0:00:51.3]} 47. Bh7+ {[%clk 0:00:03.7]}
47... Kxh7 {[%clk 0:00:47.4]} 0-1

[Event "*** Titled Tuesday Blitz"]
[Site "Chess.com"]
[Date "2020.03.03"]
[Round "4"]
[White "Galiev_Azat"]
[Black "LucaBrasi1968"]
[Result "0-1"]
[WhiteElo "2280"]
[BlackElo "2481"]
[TimeControl "180+1"]
[EndTime "13:40:39 PST"]
[Termination "LucaBrasi1968 won on time"]

1. d4 {[%clk 0:03:00.9]} 1... f5 {[%clk 0:02:59.3]} 2. Bf4 {[%clk 0:03:00.2]}
2... Nf6 {[%clk 0:02:59.4]} 3. e3 {[%clk 0:02:59.7]} 3... e6 {[%clk 0:02:59.9]}
4. h3 {[%clk 0:02:59.9]} 4... d6 {[%clk 0:02:59.9]} 5. Nf3 {[%clk 0:03:00]} 5...
Be7 {[%clk 0:02:54.6]} 6. Bd3 {[%clk 0:02:59.6]} 6... O-O {[%clk 0:02:50.4]} 7.
Nbd2 {[%clk 0:02:59.5]} 7... Nc6 {[%clk 0:02:50.7]} 8. Qe2 {[%clk 0:02:58.2]}
8... Qe8 {[%clk 0:02:50.9]} 9. O-O-O {[%clk 0:02:54.2]} 9... Bd8 {[%clk
0:02:50.5]} 10. Bg5 {[%clk 0:02:30.8]} 10... Nb4 {[%clk 0:02:42.9]} 11. Bc4
{[%clk 0:02:27.7]} 11... d5 {[%clk 0:02:42.4]} 12. Bb3 {[%clk 0:02:24.2]} 12...
a5 {[%clk 0:02:42]} 13. c3 {[%clk 0:02:12.6]} 13... a4 {[%clk 0:02:38.9]} 14.
cxb4 {[%clk 0:02:11]} 14... axb3 {[%clk 0:02:38.7]} 15. Nxb3 {[%clk 0:01:37.6]}
15... Rxa2 {[%clk 0:02:35.6]} 16. Bxf6 {[%clk 0:01:20.8]} 16... Bxf6 {[%clk
0:02:32.8]} 17. Kb1 {[%clk 0:01:19.7]} 17... Qa4 {[%clk 0:02:28.5]} 18. Qd3
{[%clk 0:01:14.3]} 18... Bd7 {[%clk 0:02:25.2]} 19. Nfd2 {[%clk 0:01:08]} 19...
Ra8 {[%clk 0:02:22.5]} 20. Qc3 {[%clk 0:00:58.7]} 20... Bc6 {[%clk 0:02:01.4]}
21. Kc2 {[%clk 0:00:53]} 21... Be7 {[%clk 0:01:52.5]} 22. Ra1 {[%clk 0:00:49.7]}
22... Qxb4 {[%clk 0:01:50.7]} 23. Rxa2 {[%clk 0:00:31.5]} 23... Rxa2 {[%clk
0:01:49.4]} 24. Qxb4 {[%clk 0:00:30.2]} 24... Bxb4 {[%clk 0:01:48.4]} 25. Nf3
{[%clk 0:00:24.1]} 25... Bb5 {[%clk 0:01:33.5]} 26. Ra1 {[%clk 0:00:19.5]} 26...
Rxa1 {[%clk 0:01:32.6]} 27. Nxa1 {[%clk 0:00:19.6]} 27... Bf1 {[%clk 0:01:28.6]}
28. Ng5 {[%clk 0:00:17.7]} 28... Bxg2 {[%clk 0:01:21.4]} 29. Nxe6 {[%clk
0:00:17]} 29... Bd6 {[%clk 0:01:10.4]} 30. h4 {[%clk 0:00:11.3]} 30... b6 {[%clk
0:01:06]} 31. Nb3 {[%clk 0:00:10.8]} 31... h6 {[%clk 0:01:04.9]} 32. Nd2 {[%clk
0:00:10.5]} 32... Kf7 {[%clk 0:01:04.3]} 33. Nd8+ {[%clk 0:00:10.4]} 33... Ke7
{[%clk 0:00:57.2]} 34. Nb7 {[%clk 0:00:08.7]} 34... Bh2 {[%clk 0:00:54.9]} 35.
Kd3 {[%clk 0:00:08.3]} 35... Kd7 {[%clk 0:00:54.1]} 36. f3 {[%clk 0:00:04.1]}
36... Kc8 {[%clk 0:00:50.6]} 37. Nc5 {[%clk 0:00:01.9]} 37... bxc5 {[%clk
0:00:50]} 38. dxc5 {[%clk 0:00:02.3]} 38... Bg3 {[%clk 0:00:46.4]} 39. h5 {[%clk
0:00:01.4]} 39... Be1 {[%clk 0:00:46.3]} 0-1

[Event "*** Titled Tuesday Blitz"]
[Site "Chess.com"]
[Date "2020.03.03"]
[Round "4"]
[White "Marcus_Harvey"]
[Black "Zq1"]
[Result "1-0"]
[WhiteElo "2749"]
[BlackElo "2570"]
[TimeControl "180+1"]
[EndTime "13:40:40 PST"]
[Termination "Marcus_Harvey won on time"]

1. d4 {[%clk 0:03:00.9]} 1... d5 {[%clk 0:02:57.5]} 2. c4 {[%clk 0:03:00.7]}
2... e6 {[%clk 0:02:57.1]} 3. Nf3 {[%clk 0:03:00.5]} 3... Nf6 {[%clk 0:02:56.5]}
4. Nc3 {[%clk 0:03:00.9]} 4... Be7 {[%clk 0:02:56.1]} 5. Bg5 {[%clk 0:03:00.1]}
5... h6 {[%clk 0:02:54.9]} 6. Bh4 {[%clk 0:02:59.7]} 6... O-O {[%clk 0:02:54.4]}
7. e3 {[%clk 0:02:59.1]} 7... b6 {[%clk 0:02:53.7]} 8. cxd5 {[%clk 0:02:58.9]}
8... Nxd5 {[%clk 0:02:52.9]} 9. Bxe7 {[%clk 0:02:58.5]} 9... Qxe7 {[%clk
0:02:52.6]} 10. Rc1 {[%clk 0:02:59]} 10... Bb7 {[%clk 0:02:46.7]} 11. Be2 {[%clk
0:02:56.6]} 11... Rc8 {[%clk 0:02:33.3]} 12. O-O {[%clk 0:02:55.5]} 12... Nd7
{[%clk 0:02:30.5]} 13. Nxd5 {[%clk 0:02:35.3]} 13... exd5 {[%clk 0:02:28.5]} 14.
Qb3 {[%clk 0:02:29.8]} 14... c5 {[%clk 0:02:22.3]} 15. dxc5 {[%clk 0:02:29.7]}
15... Nxc5 {[%clk 0:02:21.4]} 16. Qa3 {[%clk 0:02:29.3]} 16... a5 {[%clk
0:02:18.8]} 17. Nd4 {[%clk 0:02:26.8]} 17... Qf6 {[%clk 0:02:15.1]} 18. Bf3
{[%clk 0:02:22]} 18... Ne4 {[%clk 0:02:07.7]} 19. Qd3 {[%clk 0:02:12.5]} 19...
Rc5 {[%clk 0:01:56.9]} 20. Bxe4 {[%clk 0:01:53.5]} 20... dxe4 {[%clk 0:01:50.9]}
21. Qd2 {[%clk 0:01:54]} 21... Rac8 {[%clk 0:01:42.4]} 22. Rxc5 {[%clk
0:01:50.7]} 22... Rxc5 {[%clk 0:01:41.5]} 23. Rc1 {[%clk 0:01:49]} 23... Qd6
{[%clk 0:01:34.7]} 24. Rxc5 {[%clk 0:01:45]} 24... Qxc5 {[%clk 0:01:27.4]} 25.
a3 {[%clk 0:01:37.2]} 25... Qc4 {[%clk 0:00:44.4]} 26. b3 {[%clk 0:01:31.9]}
26... Qc5 {[%clk 0:00:41.7]} 27. b4 {[%clk 0:01:31.3]} 27... axb4 {[%clk
0:00:41.1]} 28. axb4 {[%clk 0:01:31.3]} 28... Qc4 {[%clk 0:00:41.2]} 29. b5
{[%clk 0:01:31.1]} 29... g6 {[%clk 0:00:31.6]} 30. h3 {[%clk 0:01:28.5]} 30...
h5 {[%clk 0:00:30.2]} 31. Qb2 {[%clk 0:01:25.7]} 31... Bd5 {[%clk 0:00:27]} 32.
Qa3 {[%clk 0:01:23.9]} 32... Qc5 {[%clk 0:00:20.6]} 33. Qxc5 {[%clk 0:00:38.1]}
33... bxc5 {[%clk 0:00:20.2]} 34. Nc6 {[%clk 0:00:38.3]} 34... Kf8 {[%clk
0:00:18.5]} 35. Na5 {[%clk 0:00:38]} 35... c4 {[%clk 0:00:16.9]} 36. Kf1 {[%clk
0:00:35.3]} 36... c3 {[%clk 0:00:15.7]} 37. Ke1 {[%clk 0:00:34.6]} 37... Ke7
{[%clk 0:00:12]} 38. b6 {[%clk 0:00:29.6]} 38... Kd6 {[%clk 0:00:10.6]} 39. Kd1
{[%clk 0:00:29.7]} 39... h4 {[%clk 0:00:05.6]} 40. Kc2 {[%clk 0:00:27.4]} 40...
g5 {[%clk 0:00:05.1]} 41. Kxc3 {[%clk 0:00:26.6]} 41... f5 {[%clk 0:00:02.4]}
42. Kd4 {[%clk 0:00:26.6]} 42... g4 {[%clk 0:00:02.2]} 43. b7 {[%clk 0:00:24.9]}
1-0